fUST/lending_fUST_20250327
["ID","MTS","AMOUNT","RATE_DAILY","PERIOD"]
[356719844,1743019838670,-3824.92360573,0.00033112,2]
[356719846,1743019838679,-3356.67692276,0.00033348,6]
[356719847,1743019838688,-204.960965,0.00033503,2]
[356719849,1743019838701,-834.83451184,0.00033569,2]
[356719851,1743019838710,-418.40181814,0.00033602,2]
[356719853,1743019838719,-151.0,0.00033627,14]
[356719855,1743019838728,-151.0,0.00033672,14]
[356719857,1743019838737,-151.0,0.00033672,14]
[356719858,1743019838746,-151.0,0.00033672,14]
[356719859,1743019838756,-1832.432357,0.00033672,2]
[356719860,1743019838765,-1832.432357,0.00033672,2]
[356719861,1743019838774,-151.0,0.00033698,14]
[356719862,1743019838784,-151.0,0.00033724,14]
[356719863,1743019838793,-703.214602,0.0003375,14]
[356719864,1743019838802,-703.214602,0.0003375,14]
[356719865,1743019838811,-151.0,0.00033775,14]
[356719866,1743019838820,-785.7289656,0.0003394,4]
[356719867,1743019838830,-471.54538709,0.00034,10]
[356719868,1743019838839,-251.28920149,0.00034,120]
[356719869,1743019838848,-161.54867577,0.00034,2]
[356719870,1743019838858,-3356.67692276,0.00034038,6]
[356719871,1743019838867,-186.53187125,0.00034338,2]
[356719872,1743019838876,-15061.68129482,0.00034341,2]
[356719936,1743019841004,-2808.88207405,0.00034341,2]
[356719938,1743019841015,-1595.92437836,0.00034341,2]
[356720008,1743019843782,-432.62489214,0.00033572,2]
[356720009,1743019843792,-12474.73923024,0.00034341,2]
[356720059,1743019846627,-14405.89987039,0.00034341,2]
[356720098,1743020031026,6000.0,0.00025,120]
[356720099,1743020526286,500.0,0.0003,30]
[356720101,1743020832105,-1096.38570761,0.00029,2]
[356720102,1743020842615,-472.75714951,0.00029,2]
[356720103,1743020844100,-683.46364081,0.00029,2]
[356720104,1743020958127,-386.73444519,0.00024989,2]
[356720105,1743020958149,-382.07666445,0.00024989,2]
[356720122,1743021031928,-1372.32401352,0.000249,2]
[356720123,1743021031940,-378.54678064,0.000249,2]
[356720124,1743021031949,-186.53187125,0.000249,2]
[356720125,1743021031958,-500.0,0.00024973,2]
[356720126,1743021031968,-500.0,0.00024973,2]
[356720127,1743021031978,-500.0,0.00024973,2]
[356720128,1743021031987,-500.0,0.00024973,2]
[356720129,1743021031996,-500.0,0.00024973,2]
[356720130,1743021032006,-117.92333555,0.00024989,2]
[356720131,1743021032015,-500.0,0.00024989,2]
[356720132,1743021032024,-207.62939236,0.00024989,2]
[356720133,1743021032033,-265.88649981,0.00024989,2]
[356720134,1743021032042,-300.0,0.00024989,2]
[356720135,1743021032051,-244.35621435,0.0002499,2]
[356720136,1743021032061,-300.09412528,0.0002499,2]
[356720137,1743021032070,-36515.69499317,0.0002499,2]
[356720155,1743021037956,-24908.32307739,0.0002499,2]
[356720156,1743021037967,-5287.25873226,0.0002499,2]
[356720172,1743021042997,-6011.63834061,0.0002499,2]
[356720187,1743021045939,-441.8099972,0.0002499,2]
[356720190,1743022043207,-165.54224137,0.00013354,2]
[356720191,1743022044105,-185.38267543,0.00013354,2]
[356720192,1743022044126,-160.0,0.00023926,2]
[356720193,1743022044146,-799.36543744,0.00023965,2]
[356720194,1743022170092,-554.42371266,0.00023965,2]
[356720195,1743022170115,-300.0,0.00024123,2]
[356720196,1743022170137,-4200.36771077,0.00024124,2]
[356720258,1743022237894,-300.0,0.00024123,2]
[356720259,1743022237904,-646.37722602,0.00024124,2]
[356720260,1743022237916,-2613.17236929,0.00024124,2]
[356720261,1743022237950,-17433.0,0.00024124,2]
[356720262,1743022237962,-7.08269392,0.00024124,2]
[356720263,1743022238083,-186.53187125,0.00024873,2]
[356720264,1743022238093,-350.83258984,0.00024873,2]
[356720265,1743022238103,-2949.22504075,0.000249,4]
[356720266,1743022238112,-500.0,0.00024973,2]
[356720267,1743022238122,-500.0,0.00024973,2]
[356720268,1743022238132,-500.0,0.00024973,2]
[356720269,1743022238141,-571.66048584,0.00024973,2]
[356720270,1743022238151,-259.018139,0.00024973,2]
[356720271,1743022238161,-209.95442237,0.00024973,2]
[356720272,1743022238170,-500.0,0.00024973,2]
[356720273,1743022238180,-500.0,0.00024973,2]
[356720274,1743022238190,-500.0,0.00024973,2]
[356720275,1743022238199,-513.81120663,0.00024973,2]
[356720276,1743022238208,-200.3500563,0.00024973,2]
[356720277,1743022238218,-500.0,0.00024973,2]
[356720278,1743022238228,-500.0,0.00024973,2]
[356720279,1743022238237,-473.85226783,0.00024973,2]
[356720280,1743022238247,-471.93897924,0.00024973,2]
[356720281,1743022238256,-500.0,0.00024973,2]
[356720282,1743022238268,-500.0,0.00024973,2]
[356720283,1743022238277,-215.72111222,0.00024973,2]
[356720284,1743022238287,-500.0,0.00024973,2]
[356720285,1743022238296,-500.0,0.00024973,2]
[356720286,1743022238305,-500.0,0.00024973,2]
[356720287,1743022238315,-302.0,0.00024975,2]
[356720288,1743022238324,-962.95720583,0.00024975,2]
[356720289,1743022238333,-270.71411163,0.00024989,2]
[356720290,1743022238342,-300.09412528,0.0002499,2]
[356720291,1743022238352,-4959.01420678,0.0002499,2]
[356720298,1743022240262,-106412.1751795,0.0002499,2]
[356720299,1743022240276,-290.77627598,0.0002499,2]
[356720300,1743022240287,-41032.52171151,0.0002499,2]
[356720316,1743022243043,-356.88242786,0.0002499,2]
[356720317,1743022243098,-1483.22075354,0.0002499,2]
[356720325,1743022246006,-652.9500001,0.0002499,2]
[356720326,1743022618888,1800.0,0.0003,30]
[356720329,1743022940963,6084.529294,0.0003,30]
[356720330,1743023147139,-271.8,0.0001388,2]
[356720331,1743023236099,-541.66153354,0.00024787,3]
[356720351,1743023432271,-24900.0,0.0002397,2]
[356720352,1743023432281,-1958.33846646,0.00024787,3]
[356720353,1743023432290,-2500.0,0.00024796,3]
[356720354,1743023432300,-3002.21537701,0.000249,4]
[356720355,1743023432309,-300.0,0.00024969,2]
[356720356,1743023432318,-292.25334024,0.00024969,2]
[356720357,1743023432328,-271.5438311,0.0002497,2]
[356720358,1743023432337,-76853.24922252,0.0002497,2]
[356720359,1743023432349,-376.36044613,0.0002497,2]
[356720371,1743023438143,-616.97023573,0.00024869,2]
[356720373,1743023440459,-392.60913161,0.00024869,2]
[356720374,1743023440469,-37.38511815,0.0002497,2]
[356720378,1743023443233,-338.18235704,0.0002497,2]
[356720379,1743023443289,-4100.68600104,0.0002497,2]
[356720386,1743024436117,-883.38194644,0.00024873,2]
[356720387,1743024436140,-217.84000169,0.000249,4]
[356720388,1743024445084,-472.75714951,0.000249,4]
[356720389,1743024447084,-300.0,0.00024969,2]
[356720390,1743024447106,-299.04481377,0.00024969,2]
[356720391,1743024447142,-1409.63482663,0.0002497,2]
[356720392,1743024452174,-669.28343009,0.0002497,2]
[356720402,1743024632414,-300.0,0.00023985,2]
[356720403,1743024632424,-14532.8904415,0.00023986,2]
[356720404,1743024632433,-772.9592031,0.00024873,2]
[356720405,1743024632443,-2879.12162606,0.000249,4]
[356720406,1743024632454,-325.35170319,0.00024959,2]
[356720407,1743024632463,-382.07666445,0.00024959,2]
[356720408,1743024632472,-185916.70632931,0.0002496,2]
[356720409,1743024632526,-392.58,0.0002496,2]
[356720424,1743024638228,-536.22683561,0.0002496,2]
[356720425,1743024638241,-13692.38381561,0.0002496,2]
[356720430,1743024640651,-2735.3965849,0.0002496,2]
[356720434,1743024643459,-847.92286168,0.0002496,2]
[356720453,1743024646308,-1096.9953445,0.00024102,2]
[356720454,1743024646319,-26030.4346555,0.0002496,2]
[356720458,1743024646368,-8327.01877402,0.0002496,2]
[356720459,1743024646428,-947.67,0.0002496,2]
[356720461,1743024705571,10000.0,0.0003,30]
[356720462,1743025060803,2503.42256506,0.0003,30]
[356720467,1743025471323,2001.0,0.0003,120]
[356720468,1743025628093,-165.54224137,0.00014907,2]
[356720469,1743025637096,-74.70459364,0.00014907,2]
[356720470,1743025637119,-676.33930273,0.00024889,2]
[356720471,1743025637142,-389.35160003,0.000249,4]
[356720472,1743025642087,-350.9249168,0.00014629,2]
[356720473,1743025642112,-228.2,0.00024548,2]
[356720474,1743025642138,-313.67304592,0.000249,4]
[356720477,1743025774106,-461.09,0.00020897,2]
[356720483,1743025817705,764.83125231,0.0003,120]
[356720515,1743025832536,-39.42305871,0.00020897,2]
[356720516,1743025832546,-3452.74601059,0.000249,4]
[356720517,1743025832556,-591.79688988,0.000249,2]
[356720518,1743025832573,-300.0,0.00024972,2]
[356720519,1743025832589,-150.241841,0.00024973,2]
[356720520,1743025832603,-542.41003302,0.00024973,2]
[356720521,1743025832613,-500.0,0.00024973,2]
[356720522,1743025832622,-591.20069898,0.00024973,2]
[356720523,1743025832631,-641.01650533,0.00024973,2]
[356720524,1743025832640,-500.0,0.00024973,2]
[356720525,1743025832650,-500.0,0.00024973,2]
[356720526,1743025832660,-504.4914867,0.00024973,2]
[356720527,1743025832670,-500.0,0.00024973,2]
[356720528,1743025832680,-500.0,0.00024973,2]
[356720529,1743025832689,-152.26280356,0.00024973,2]
[356720530,1743025832699,-500.0,0.00024973,2]
[356720531,1743025832708,-500.0,0.00024973,2]
[356720532,1743025832717,-500.0,0.00024973,2]
[356720533,1743025832727,-500.0,0.00024973,2]
[356720534,1743025832736,-500.0,0.00024973,2]
[356720535,1743025832745,-1015.28153394,0.00024973,2]
[356720536,1743025832755,-500.0,0.00024973,2]
[356720537,1743025832764,-500.0,0.00024973,2]
[356720538,1743025832774,-500.0,0.00024973,2]
[356720539,1743025832783,-500.25576801,0.00024973,2]
[356720540,1743025832793,-500.0,0.00024973,2]
[356720541,1743025832802,-500.39008081,0.00024973,2]
[356720542,1743025832813,-500.0,0.00024973,2]
[356720543,1743025832823,-151.9309098,0.00024973,2]
[356720544,1743025832832,-500.0,0.00024973,2]
[356720545,1743025832842,-500.0,0.00024973,2]
[356720546,1743025832851,-500.0,0.00024973,2]
[356720547,1743025832862,-500.26983483,0.00024973,2]
[356720548,1743025832871,-160.0,0.00024973,2]
[356720549,1743025832881,-500.0,0.00024973,2]
[356720550,1743025832891,-500.0,0.00024973,2]
[356720551,1743025832901,-500.0,0.00024973,2]
[356720552,1743025832910,-563.07415017,0.00024973,2]
[356720553,1743025832919,-500.0,0.00024973,2]
[356720554,1743025832929,-500.0,0.00024973,2]
[356720555,1743025832942,-500.0,0.00024973,2]
[356720556,1743025832952,-500.0,0.00024973,2]
[356720557,1743025832961,-500.0,0.00024973,2]
[356720558,1743025832971,-500.0,0.00024973,2]
[356720559,1743025832980,-500.0,0.00024973,2]
[356720560,1743025832990,-220.87887469,0.00024973,2]
[356720561,1743025833010,-500.0,0.00024973,2]
[356720562,1743025833021,-535.86100632,0.00024973,2]
[356720563,1743025833031,-500.0,0.00024973,2]
[356720564,1743025833041,-225.57384046,0.00024973,2]
[356720565,1743025833051,-161.12315093,0.00024973,2]
[356720566,1743025833061,-246.69927091,0.00024989,2]
[356720567,1743025833071,-317.694021,0.00024989,2]
[356720568,1743025833082,-395.94407,0.00024989,2]
[356720569,1743025833092,-500.0,0.00024989,2]
[356720570,1743025833101,-207.62939236,0.00024989,2]
[356720571,1743025833111,-265.88649981,0.00024989,2]
[356720572,1743025833122,-244.35621435,0.0002499,2]
[356720573,1743025833132,-300.09412529,0.0002499,2]
[356720574,1743025833144,-196911.11542622,0.0002499,2]
[356720575,1743025833236,-62034.06375336,0.0002499,2]
[356720576,1743025833249,-418.88,0.0002499,2]
[356720577,1743025833261,-2503.99719708,0.0002499,2]
[356720592,1743025838403,-460.93239562,0.0002499,2]
[356720593,1743025838461,-999.50000001,0.0002499,2]
[356720605,1743025840926,-258.22,0.0002499,2]
[356720606,1743025841039,-6655.97958307,0.0002499,2]
[356720619,1743025843750,-10857.65784964,0.0002499,2]
[356720620,1743025843760,-4768.7283852,0.00025,7]
[356720621,1743025843772,-8463.95,0.00025,7]
[356720651,1743025846569,-10889.62167018,0.00025,7]
[356720652,1743025846582,-882.21969813,0.00025,7]
[356720665,1743026754249,-271.8,0.00023935,2]
[356720666,1743026828167,-26.581017,0.00023935,2]
[356720667,1743026828189,-300.0,0.0002396,2]
[356720668,1743026828211,-227.84270619,0.00023961,2]
[356720669,1743026839081,-4647.06107735,0.00023961,2]
[356720706,1743027032855,-198.84818064,0.00023835,2]
[356720707,1743027032865,-300.0,0.0002396,2]
[356720709,1743027032874,-12513.58109396,0.00023961,2]
[356720711,1743027032885,-1353.7891501,0.00023992,2]
[356720713,1743027032895,-1143.61765799,0.00024871,2]
[356720714,1743027032905,-1194.8542458,0.00024873,2]
[356720715,1743027032914,-151.0,0.000249,9]
[356720716,1743027032923,-1372.32401352,0.000249,2]
[356720717,1743027032933,-3838.62438582,0.000249,4]
[356720718,1743027032943,-562.9287779,0.00024969,2]
[356720719,1743027032953,-500.0,0.00024969,2]
[356720720,1743027032963,-500.0,0.00024969,2]
[356720721,1743027032972,-500.0,0.00024969,2]
[356720722,1743027032982,-500.0,0.00024969,2]
[356720723,1743027032990,-500.0,0.00024969,2]
[356720724,1743027033000,-500.0,0.00024969,2]
[356720725,1743027033010,-500.0,0.00024969,2]
[356720726,1743027033019,-500.0,0.00024969,2]
[356720727,1743027033028,-449.05632242,0.00024969,2]
[356720728,1743027033039,-500.0,0.00024969,2]
[356720729,1743027033048,-500.0,0.00024969,2]
[356720730,1743027033057,-500.0,0.00024969,2]
[356720731,1743027033068,-500.0,0.00024969,2]
[356720732,1743027033077,-987.37762,0.00024972,2]
[356720733,1743027033087,-500.0,0.00024973,2]
[356720734,1743027033097,-317.86037617,0.00024973,2]
[356720735,1743027033106,-297.32746291,0.00024973,2]
[356720736,1743027033116,-500.0,0.00024973,2]
[356720737,1743027033126,-500.0,0.00024973,2]
[356720738,1743027033135,-500.0,0.00024973,2]
[356720739,1743027033148,-403.91601673,0.00024973,2]
[356720740,1743027033158,-500.0,0.00024973,2]
[356720741,1743027033167,-500.0,0.00024973,2]
[356720742,1743027033177,-500.0,0.00024973,2]
[356720743,1743027033186,-507.07056734,0.00024973,2]
[356720744,1743027033195,-500.0,0.00024973,2]
[356720745,1743027033204,-500.0,0.00024973,2]
[356720746,1743027033214,-500.54257285,0.00024973,2]
[356720747,1743027033224,-500.71897987,0.00024973,2]
[356720748,1743027033234,-500.0,0.00024973,2]
[356720749,1743027033244,-500.0,0.00024973,2]
[356720750,1743027033254,-500.0,0.00024973,2]
[356720751,1743027033264,-500.0,0.00024973,2]
[356720752,1743027033274,-500.0,0.00024973,2]
[356720753,1743027033283,-500.0,0.00024973,2]
[356720754,1743027033293,-500.0,0.00024973,2]
[356720755,1743027033302,-500.0,0.00024973,2]
[356720756,1743027033311,-500.0,0.00024973,2]
[356720757,1743027033321,-619.11161008,0.00024973,2]
[356720758,1743027033330,-500.0,0.00024973,2]
[356720759,1743027033340,-500.0,0.00024973,2]
[356720760,1743027033350,-500.0,0.00024973,2]
[356720761,1743027033359,-600.0,0.00024975,2]
[356720762,1743027033369,-152.0,0.00024976,2]
[356720763,1743027033379,-314.42283808,0.00024979,2]
[356720764,1743027033389,-225271.087873,0.0002498,2]
[356720765,1743027033399,-216.16810547,0.00024989,2]
[356720766,1743027033408,-112635.543937,0.0002499,2]
[356720767,1743027033420,-219747.2628018,0.00025,7]
[356720768,1743027033434,-3333.0,0.00025,2]
[356720769,1743027033444,-248.95021,0.00025,7]
[356720770,1743027033453,-182.69667,0.00025,7]
[356720771,1743027033463,-2500.0,0.00025221,3]
[356720772,1743027033472,-1372.54064196,0.00025261,2]
[356720773,1743027033481,-2500.0,0.00025701,3]
[356720774,1743027033491,-2500.0,0.0002571,3]
[356720775,1743027033500,-3838.62438553,0.00025762,4]
[356720776,1743027033510,-151.0,0.000259,18]
[356720777,1743027033519,-420.0,0.00025985,2]
[356720778,1743027033529,-151.0,0.000269,20]
[356720779,1743027033538,-271.8,0.0002765,2]
[356720780,1743027033548,-470.5,0.00027651,15]
[356720781,1743027033557,-151.764467,0.00027784,2]
[356720782,1743027033566,-172.378103,0.00027784,2]
[356720783,1743027033576,-151.0,0.000278,10]
[356720784,1743027033585,-151.0,0.00028,10]
[356720785,1743027033594,-179.74832365,0.00028007,2]
[356720786,1743027033604,-151.0,0.0002817,7]
[356720787,1743027033614,-151.0,0.0002817,7]
[356720788,1743027033623,-183.389932,0.0002817,7]
[356720789,1743027033633,-151.0,0.0002817,7]
[356720790,1743027033642,-2986.642085,0.0002817,2]
[356720791,1743027033651,-2986.642085,0.0002817,2]
[356720792,1743027033662,-263.702188,0.0002817,7]
[356720793,1743027033674,-160.303491,0.0002817,7]
[356720794,1743027033684,-160.303491,0.0002817,7]
[356720795,1743027033693,-308.678542,0.0002817,7]
[356720796,1743027033703,-308.678542,0.0002817,7]
[356720797,1743027033712,-587.0,0.0002818,2]
[356720798,1743027033722,-1143.61765796,0.00028418,2]
[356720799,1743027033731,-151.0,0.000288,17]
[356720800,1743027033741,-500.0,0.00028973,5]
[356720801,1743027033751,-500.0,0.00028973,5]
[356720802,1743027033760,-500.0,0.00028973,5]
[356720803,1743027033769,-500.0,0.00028973,5]
[356720804,1743027033779,-500.0,0.00028973,5]
[356720805,1743027033788,-500.0,0.00028973,5]
[356720806,1743027033798,-150.88812518,0.00028973,5]
[356720807,1743027033811,-500.0,0.00028973,5]
[356720808,1743027033820,-501.2797591,0.00028973,5]
[356720809,1743027033830,-500.0,0.00028973,5]
[356720810,1743027033840,-500.0,0.00028973,5]
[356720811,1743027033849,-500.0,0.00028973,5]
[356720812,1743027033859,-500.0,0.00028973,5]
[356720813,1743027033868,-500.0,0.00028973,5]
[356720814,1743027033877,-151.0,0.0002899,7]
[356720815,1743027033887,-151.0,0.0002899,7]
[356720816,1743027033897,-151.0,0.0002899,7]
[356720817,1743027033907,-154.656623,0.0002899,7]
[356720818,1743027033916,-151.0,0.0002899,7]
[356720819,1743027033926,-166.620343,0.0002899,7]
[356720820,1743027033935,-151.0,0.0002899,7]
[356720821,1743027033944,-151.0,0.0002899,7]
[356720822,1743027033954,-2986.642085,0.0002899,2]
[356720823,1743027033963,-2986.642085,0.0002899,2]
[356720824,1743027033974,-160.303491,0.0002899,7]
[356720825,1743027033984,-160.303491,0.0002899,7]
[356720826,1743027033993,-308.678542,0.0002899,7]
[356720827,1743027034002,-308.678542,0.0002899,7]
[356720828,1743027034012,-1388.17572648,0.00029,2]
[356720829,1743027034022,-41960.61741426,0.00029,7]
[356720830,1743027034032,-41960.61741426,0.00029,7]
[356720831,1743027034041,-154.877366,0.00029,7]
[356720832,1743027034051,-151.0,0.00029,7]
[356720833,1743027034062,-151.0,0.00029,7]
[356720834,1743027034071,-151.0,0.00029,7]
[356720835,1743027034081,-151.0,0.00029,7]
[356720836,1743027034091,-151.0,0.00029,7]
[356720837,1743027034100,-151.0,0.00029,15]
[356720838,1743027034110,-151.0,0.00029,7]
[356720839,1743027034119,-241.9559,0.00029,7]
[356720840,1743027034128,-632.893142,0.00029,7]
[356720841,1743027034137,-632.893142,0.00029,7]
[356720842,1743027034147,-632.893142,0.00029,7]
[356720843,1743027034157,-632.893142,0.00029,7]
[356720844,1743027034166,-151.0,0.00029,7]
[356720845,1743027034175,-151.0,0.00029,7]
[356720846,1743027034185,-151.0,0.00029,7]
[356720847,1743027034194,-151.0,0.00029,7]
[356720848,1743027034203,-2986.642085,0.00029,2]
[356720849,1743027034213,-2986.642085,0.00029,2]
[356720850,1743027034222,-2986.642085,0.00029,2]
[356720851,1743027034232,-2986.642085,0.00029,2]
[356720852,1743027034241,-160.303491,0.00029,7]
[356720853,1743027034251,-160.303491,0.00029,7]
[356720854,1743027034260,-160.303491,0.00029,7]
[356720855,1743027034270,-160.303491,0.00029,7]
[356720856,1743027034279,-308.678542,0.00029,7]
[356720857,1743027034288,-308.678542,0.00029,7]
[356720858,1743027034297,-308.678542,0.00029,7]
[356720859,1743027034307,-308.678542,0.00029,7]
[356720860,1743027034316,-151.0,0.000298,20]
[356720861,1743027034325,-279.86878143,0.00029836,3]
[356720862,1743027034335,-500.0,0.00029869,5]
[356720863,1743027034344,-500.0,0.00029869,5]
[356720864,1743027034354,-500.0,0.00029869,5]
[356720865,1743027034363,-500.0,0.00029869,5]
[356720866,1743027034372,-500.0,0.00029917,5]
[356720867,1743027034381,-10043.50649387,0.0003,10]
[356720868,1743027034390,-151.0,0.0003,15]
[356720869,1743027034399,-632.893142,0.0003,7]
[356720870,1743027034408,-632.893142,0.0003,7]
[356720871,1743027034417,-151.0,0.0003,7]
[356720872,1743027034426,-151.0,0.0003,7]
[356720873,1743027034435,-2986.642085,0.0003,2]
[356720874,1743027034445,-2986.642085,0.0003,2]
[356720875,1743027034454,-178.0,0.0003,2]
[356720876,1743027034464,-160.303491,0.0003,7]
[356720877,1743027034473,-160.303491,0.0003,7]
[356720878,1743027034483,-308.678542,0.0003,7]
[356720879,1743027034493,-308.678542,0.0003,7]
[356720880,1743027034503,-362.19133297,0.00030452,5]
[356720881,1743027034512,-1000.0,0.00030452,5]
[356720882,1743027034522,-1000.0,0.00030452,5]
[356720883,1743027034541,-1002.06058155,0.00030452,5]
[356720884,1743027034551,-1008.21992814,0.00030452,5]
[356720885,1743027034561,-500.0,0.00030452,5]
[356720886,1743027034571,-1000.0,0.00030452,5]
[356720887,1743027034580,-1000.0,0.00030452,5]
[356720888,1743027034590,-1000.0,0.00030452,5]
[356720889,1743027034599,-1000.0,0.00030452,5]
[356720890,1743027034609,-1000.0,0.00030452,5]
[356720891,1743027034619,-1000.0,0.00030452,5]
[356720892,1743027034628,-1000.0,0.00030452,5]
[356720893,1743027034638,-500.0,0.00030452,5]
[356720894,1743027034647,-327.52066194,0.00030452,5]
[356720895,1743027034657,-287.15848676,0.00030452,5]
[356720896,1743027034666,-1000.0,0.00030452,5]
[356720897,1743027034676,-230.0,0.00030561,2]
[356720898,1743027034685,-406.267,0.0003077,2]
[356720899,1743027034695,-151.0,0.000308,18]
[356720900,1743027034705,-151.0,0.00031,14]
[356720901,1743027034715,-834.83451184,0.00031486,2]
[356720902,1743027034724,-632.893142,0.00031796,7]
[356720903,1743027034734,-632.893142,0.00031796,7]
[356720904,1743027034743,-160.303491,0.00031796,7]
[356720905,1743027034752,-160.303491,0.00031796,7]
[356720906,1743027034762,-308.678542,0.00031796,7]
[356720907,1743027034771,-308.678542,0.00031796,7]
[356720908,1743027034781,-151.0,0.000318,10]
[356720909,1743027034790,-1143.61765796,0.00031965,2]
[356720910,1743027034800,-151.0,0.00031986,7]
[356720911,1743027034814,-151.0,0.00032,19]
[356720912,1743027034824,-2000.0,0.000325,15]
[356720913,1743027034833,-2000.0,0.000325,15]
[356720914,1743027034844,-2000.0,0.000325,15]
[356720915,1743027034855,-2000.0,0.000325,15]
[356720916,1743027034865,-2000.0,0.000325,15]
[356720917,1743027034875,-2000.0,0.000325,15]
[356720918,1743027034886,-2000.0,0.000325,15]
[356720919,1743027034896,-2000.0,0.000325,15]
[356720920,1743027034905,-380.0,0.000325,15]
[356720921,1743027034915,-151.0,0.000325,7]
[356720922,1743027034925,-274.185677,0.000325,7]
[356720923,1743027034935,-2986.642085,0.000325,2]
[356720924,1743027034944,-2986.642085,0.000325,2]
[356720925,1743027034953,-541.0,0.00032612,2]
[356720926,1743027034963,-151.077,0.00032612,2]
[356720927,1743027035101,-2263.0,0.00032612,2]
[356720928,1743027035111,-1915.0,0.00032612,2]
[356720929,1743027035120,-151.0,0.000327,15]
[356720930,1743027035130,-632.893142,0.00032867,7]
[356720931,1743027035139,-632.893142,0.00032867,7]
[356720932,1743027035149,-151.0,0.00032877,14]
[356720933,1743027035158,-151.0,0.00032877,14]
[356720934,1743027035168,-151.0,0.00032877,14]
[356720935,1743027035177,-151.0,0.00032877,14]
[356720936,1743027035188,-151.0,0.00032877,14]
[356720937,1743027035198,-15000.0,0.00032877,5]
[356720938,1743027035207,-151.0,0.00032877,14]
[356720939,1743027035217,-2986.642085,0.00032877,2]
[356720940,1743027035226,-2986.642085,0.00032877,2]
[356720941,1743027035236,-160.303491,0.00032877,14]
[356720942,1743027035246,-160.303491,0.00032877,14]
[356720943,1743027035255,-308.678542,0.00032877,14]
[356720944,1743027035266,-308.678542,0.00032877,14]
[356720945,1743027035276,-500.0,0.00032927,5]
[356720946,1743027035286,-309.695,0.00033,2]
[356720947,1743027035296,-151.0,0.00033,16]
[356720948,1743027035306,-178.0,0.00033,2]
[356720949,1743027035316,-181.72,0.000333,2]
[356720950,1743027035326,-1024.4910265,0.0003331,4]
[356720951,1743027035337,-151.0,0.0003331,14]
[356720952,1743027035346,-630.0,0.000334,2]
[356720953,1743027035356,-500.0,0.00033651,120]
[356720954,1743027035366,-500.0,0.00033651,120]
[356720955,1743027035375,-500.0,0.00033651,120]
[356720956,1743027035384,-500.0,0.00033651,120]
[356720957,1743027035394,-500.0,0.00033651,120]
[356720958,1743027035403,-500.0,0.00033651,120]
[356720959,1743027035412,-500.0,0.00033651,120]
[356720960,1743027035422,-500.0,0.00033651,120]
[356720961,1743027035432,-500.0,0.00033651,120]
[356720962,1743027035442,-500.0,0.00033651,120]
[356720963,1743027035451,-500.0,0.00033651,120]
[356720964,1743027035461,-632.893142,0.00033651,14]
[356720965,1743027035471,-632.893142,0.00033651,14]
[356720966,1743027035481,-386.68,0.00033651,120]
[356720967,1743027035491,-151.0,0.000337,20]
[356720968,1743027035500,-400.0,0.0003377,2]
[356720969,1743027035509,-160.303491,0.000339,14]
[356720970,1743027035518,-160.303491,0.000339,14]
[356720971,1743027035527,-308.678542,0.000339,14]
[356720972,1743027035536,-308.678542,0.000339,14]
[356720973,1743027035545,-151.0,0.00034,11]
[356720974,1743027035554,-151.0,0.00034,14]
[356720975,1743027035563,-1000.0,0.00034023,5]
[356720976,1743027035573,-800.0,0.00034083,2]